fUSD/lending_fUSD_20241201
["ID","MTS","AMOUNT","RATE_DAILY","PERIOD"]
[343929124,1733087432980,-855.4139822,7.583e-05,2]
[343929125,1733087432991,-550.99707701,7.583e-05,2]
[343929126,1733087433048,-3148.89194215,7.583e-05,2]
[343929127,1733087433062,-10765.5,7.583e-05,2]
[343929128,1733087433082,-6092.74635457,7.583e-05,2]
[343929129,1733087433203,-35964.00000005,7.583e-05,2]
[343929130,1733087433215,-68220.05963049,7.583e-05,2]
[343929131,1733087433227,-17886.58932755,7.583e-05,2]
[343929132,1733087433255,-517.70100977,7.583e-05,2]
[343929135,1733087438473,-856.37074397,7.583e-05,2]
[343929136,1733087438533,-5486.46781935,7.583e-05,2]
[343929137,1733087438544,-2203.64767425,7.583e-05,2]
[343929138,1733087438556,-1976.37187742,7.583e-05,2]
[343929139,1733087438570,-2171.41435,7.583e-05,2]
[343929140,1733087438581,-2265.3034,7.583e-05,2]
[343929147,1733087442867,-20903.14005402,7.583e-05,2]
[343929148,1733087442986,-2165.82288,7.583e-05,2]
[343929151,1733087443096,-324.10000008,7.583e-05,2]
[343929152,1733087443108,-390.01,7.583e-05,2]
[343929155,1733087443154,-392.26146174,7.583e-05,2]
[343929157,1733087443167,-2062.83533501,7.583e-05,2]
[343929190,1733087443385,-500.0,7.563e-05,2]
[343929193,1733087443395,-547.93021872,7.583e-05,2]
[343929196,1733087443406,-13533.23943098,7.583e-05,2]
[343929201,1733087443417,-4433.14168673,7.583e-05,2]
[343929204,1733087443429,-5654.79222064,7.583e-05,2]
[343929218,1733087443505,-234108.24292839,7.583e-05,2]
[343929221,1733087443517,-8703.91619837,7.583e-05,2]
[343929223,1733087443529,-1600.2,7.583e-05,2]
[343929226,1733087443540,-17099.91627824,7.583e-05,2]
[343929233,1733087443770,-1281.77860811,7.583e-05,2]
[343929236,1733087443862,-2840.52,7.583e-05,2]
[343929238,1733087443875,-508.5,7.583e-05,2]
[343929243,1733087443918,-2915.53169714,7.583e-05,2]
[343929245,1733087443929,-548.0932,7.583e-05,2]
[343929248,1733087443941,-1149.369636,7.583e-05,2]
[343929250,1733087443952,-4628.727316,7.583e-05,2]
[343929252,1733087443963,-2142.549585,7.583e-05,2]
[343929254,1733087443974,-5666.882376,7.583e-05,2]
[343929256,1733087443986,-1091.66958425,7.583e-05,2]
[343929258,1733087443997,-1208.719407,7.583e-05,2]
[343929275,1733087446385,-490.617387,7.583e-05,2]
[343929276,1733087446396,-567.3591347,7.583e-05,2]
[343929277,1733087446407,-2150.34978,7.583e-05,2]
[343929278,1733087446430,-708.92012537,7.583e-05,2]
[343929279,1733087446467,-2663.6308,7.583e-05,2]
[343929280,1733087446478,-58652.29388806,7.583e-05,2]
[343929281,1733087446490,-15500.31954785,7.583e-05,2]
[343929282,1733087446501,-31335.360575,7.583e-05,2]
[343929283,1733087446513,-96274.108656,7.583e-05,2]
[343929284,1733087446554,-458.53694364,7.583e-05,2]
[343929285,1733087446569,-1077.304745,7.583e-05,2]
[343929286,1733087446611,-9737.42769999,7.583e-05,2]
[343929305,1733087567450,-300.0,7.581e-05,2]
[343929306,1733087567475,-150.0,7.581e-05,2]
[343929307,1733087567499,-347.00644578,7.582e-05,2]
[343929308,1733087567524,-91893.96279656,7.582e-05,2]
[343929309,1733087567553,-695651.03075766,7.583e-05,2]
[343929310,1733087685465,157.26,6.824e-05,2]
[343929311,1733087685487,217.28960701,6.824e-05,2]
[343929312,1733087685513,212.80039299,6.824e-05,2]
[343929313,1733087707238,862.6,6.815e-05,2]
[343929314,1733087759565,1000.000001,7e-05,2]
[343929315,1733087796359,250.0,6.817e-05,2]
[343929317,1733087867364,329.35,6.813e-05,3]
[343929318,1733088280496,150.0,6.837e-05,2]
[343929319,1733088280519,150.0,6.837e-05,2]
[343929320,1733088280541,200.0,6.837e-05,2]
[343929321,1733088280570,489.39,6.837e-05,2]
[343929324,1733088379500,470.64,6.84e-05,2]
[343929325,1733088411918,201.74068072,6.806e-05,2]
[343929332,1733088537669,2266.0,7.139e-05,2]
[343929354,1733088631587,-577.54888112,7.499e-05,2]
[343929355,1733088631598,-150.0,7.499e-05,2]
[343929356,1733088631607,-15357.45111888,7.5e-05,2]
[343929357,1733088631619,-700.0,7.5e-05,2]
[343929358,1733088631631,-5880.0,7.5e-05,2]
[343929359,1733088631643,-1360.0,7.5e-05,2]
[343929360,1733088631654,-286.31726036,7.5e-05,2]
[343929361,1733088631666,-679.13133711,7.5e-05,2]
[343929362,1733088631848,-0.1336562,7.5e-05,2]
[343929363,1733088631907,-548.88994167,7.5e-05,2]
[343929373,1733088637209,4019.1,6.892e-05,2]
[343929380,1733088637722,-4044.11041027,7.5e-05,2]
[343929381,1733088637733,-2174.49536,7.5e-05,2]
[343929382,1733088637745,-2187.56958,7.5e-05,2]
[343929383,1733088637764,-3427.44999,7.5e-05,2]
[343929386,1733088639753,600.0,7e-05,2]
[343929387,1733088639770,-1309.43993114,7.5e-05,2]
[343929388,1733088639830,-2173.85907,7.5e-05,2]
[343929397,1733088640654,-172462.68222909,7.5e-05,2]
[343929398,1733088640665,-345.02864366,7.563e-05,2]
[343929399,1733088640674,-501.15683084,7.563e-05,2]
[343929400,1733088640684,-500.0,7.563e-05,2]
[343929401,1733088640694,-500.0,7.563e-05,2]
[343929402,1733088640704,-19247.04935696,7.582e-05,2]
[343929403,1733088640713,-235.62948377,7.582e-05,2]
[343929404,1733088640723,-1376.99928802,7.582e-05,2]
[343929405,1733088640732,-150.0,7.582e-05,2]
[343929406,1733088640741,-150.0,7.582e-05,2]
[343929407,1733088640750,-150.0,7.582e-05,2]
[343929408,1733088640760,-150.0,7.582e-05,2]
[343929409,1733088640770,-150.0,7.582e-05,2]
[343929410,1733088640780,-150.0,7.582e-05,2]
[343929411,1733088640789,-150.0,7.582e-05,2]
[343929412,1733088640799,-150.0,7.582e-05,2]
[343929413,1733088640809,-150.0,7.582e-05,2]
[343929414,1733088640818,-150.0,7.582e-05,2]
[343929415,1733088640829,-150.0,7.582e-05,2]
[343929416,1733088640839,-150.0,7.582e-05,2]
[343929417,1733088640848,-150.0,7.582e-05,2]
[343929418,1733088640858,-150.0,7.582e-05,2]
[343929419,1733088640867,-150.0,7.582e-05,2]
[343929420,1733088640877,-150.0,7.582e-05,2]
[343929421,1733088640886,-342316.94888856,7.583e-05,2]
[343929422,1733088640939,-259.29796433,7.583e-05,2]
[343929423,1733088640952,-2440.23095333,7.583e-05,2]
[343929424,1733088640963,-298.19180604,7.583e-05,2]
[343929425,1733088640975,-1670.88583999,7.583e-05,2]
[343929426,1733088640986,-472.78638564,7.583e-05,2]
[343929427,1733088640998,-453.2535369,7.583e-05,2]
[343929428,1733088641010,-4014.65001812,7.583e-05,2]
[343929431,1733088642322,1300.0,7.1e-05,2]
[343929435,1733088642836,-8914.24839283,7.583e-05,2]
[343929436,1733088642848,-2957.63451493,7.583e-05,2]
[343929437,1733088642860,-5857.6581749,7.583e-05,2]
[343929438,1733088642943,-942.11029863,7.583e-05,2]
[343929439,1733088642954,-6231.09317037,7.583e-05,2]
[343929440,1733088642977,-740.36,7.583e-05,2]
[343929441,1733088642990,-570.916685,7.583e-05,2]
[343929442,1733088643002,-657.41777,7.583e-05,2]
[343929443,1733088643014,-360.26241,7.583e-05,2]
[343929446,1733088643042,-47316.58608974,7.583e-05,2]
[343929448,1733088643054,-3280.17497261,7.583e-05,2]
[343929451,1733088645446,-995.18764176,7.2e-05,2]
[343929452,1733088645531,-904.81235824,7.2e-05,2]
[343929453,1733088645541,-653.64942555,7.583e-05,2]
[343929454,1733088645553,-334.82242494,7.583e-05,2]
[343929455,1733088645627,-21024.45727977,7.583e-05,2]
[343929456,1733088645640,-628.53397532,7.583e-05,2]
[343929457,1733088645664,-10863.4999694,7.583e-05,2]
[343929518,1733088688345,300.0,7e-05,2]
[343929519,1733088690326,600.0,7.1e-05,2]
[343929520,1733088778313,-268.5,7.2e-05,2]
[343929521,1733088903317,1500.0,6.813e-05,2]
[343929522,1733088979002,196.92,6.845e-05,2]
[343929523,1733088986602,-631.5,7.2e-05,2]
[343929524,1733088986632,-2600.0,7.3e-05,2]
[343929525,1733088986656,-1200.0,7.3e-05,2]
[343929526,1733088986681,-300.0,7.399e-05,2]
[343929527,1733088986705,-3200.0,7.4e-05,2]
[343929528,1733088986729,-500.0,7.4e-05,2]
[343929529,1733088986752,-1500.0,7.4e-05,2]
[343929530,1733088986775,-600.0,7.5e-05,2]
[343929531,1733088986797,-1066.0,7.5e-05,2]
[343929532,1733088986820,-300.0,7.5e-05,2]
[343929533,1733088986843,-500.0,7.563e-05,2]
[343929534,1733088986868,-150.0,7.582e-05,2]
[343929535,1733088986895,-20482703.60290044,7.583e-05,2]
[343929536,1733088986917,-185.87326919,7.583e-05,2]
[343929537,1733088986938,-215866.73696722,7.583e-05,2]
[343929538,1733088986962,-150.0,7.59e-05,2]
[343929539,1733088986986,-434.88,7.59e-05,2]
[343929540,1733088987007,-150.0,7.59e-05,2]
[343929541,1733088987029,-434.88,7.59e-05,2]
[343929542,1733088987050,-150.0,7.59e-05,2]
[343929543,1733088987071,-434.88,7.59e-05,2]
[343929544,1733088987093,-150.0,7.59e-05,2]
[343929545,1733088987114,-421.19,7.59e-05,2]
[343929546,1733088987148,-150.0,7.59e-05,2]
[343929547,1733088987171,-434.45,7.59e-05,2]
[343929548,1733088987194,-434.88,7.59e-05,2]
[343929549,1733088987217,-267.86,7.59e-05,2]
[343929550,1733088987252,-363.9,7.59e-05,2]
[343929551,1733088987299,-150.0,7.59e-05,2]
[343929552,1733088987346,-250.0,7.6e-05,2]
[343929553,1733088987393,-250.0,7.6e-05,2]
[343929554,1733088987437,-250.0,7.6e-05,2]
[343929555,1733088987478,-250.0,7.6e-05,2]
[343929556,1733088987516,-250.0,7.6e-05,2]
[343929557,1733088987553,-250.0,7.6e-05,2]
[343929558,1733088987601,-250.0,7.6e-05,2]
[343929559,1733088987640,-250.0,7.6e-05,2]
[343929560,1733088987676,-250.0,7.6e-05,2]
[343929561,1733088987711,-250.0,7.6e-05,2]
[343929562,1733088987749,-250.0,7.6e-05,2]
[343929563,1733088987787,-250.0,7.6e-05,2]
[343929564,1733088987825,-250.0,7.6e-05,2]
[343929565,1733088987861,-250.0,7.6e-05,2]
[343929566,1733088987898,-250.0,7.6e-05,2]
[343929567,1733088987934,-250.0,7.6e-05,2]
[343929568,1733088987977,-250.0,7.6e-05,2]
[343929569,1733088988039,-250.0,7.6e-05,2]
[343929570,1733088988089,-250.0,7.6e-05,2]
[343929571,1733088988136,-250.0,7.6e-05,2]
[343929572,1733088988183,-250.0,7.6e-05,2]
[343929573,1733088988226,-250.0,7.6e-05,2]
[343929574,1733088988266,-250.0,7.6e-05,2]
[343929575,1733088988304,-250.0,7.6e-05,2]
[343929576,1733088988343,-250.0,7.6e-05,2]
[343929577,1733088988381,-383.7,7.6e-05,2]
[343929578,1733088988421,-600.0,7.6e-05,2]
[343929579,1733088988467,-300.0,7.6e-05,2]
[343929580,1733088988521,-11617.0,7.6e-05,2]
[343929581,1733088988567,-150.0,7.61e-05,2]
[343929582,1733088988612,-173.94,7.61e-05,2]
[343929583,1733088988653,-363.9,7.61e-05,2]
[343929584,1733088988693,-150.0,7.61e-05,2]
[343929585,1733088988731,-434.88,7.61e-05,2]
[343929586,1733088988769,-150.0,7.61e-05,2]
[343929587,1733088988807,-151.07,7.61e-05,2]
[343929588,1733088988844,-300.0,7.61e-05,2]
[343929589,1733088988883,-434.88,7.61e-05,2]
[343929590,1733088988922,-150.0,7.61e-05,2]
[343929591,1733088988969,-363.9,7.61e-05,2]
[343929592,1733088989012,-150.0,7.61e-05,2]
[343929593,1733088989056,-434.88,7.61e-05,2]
[343929594,1733088989100,-363.9,7.61e-05,2]
[343929595,1733088989143,-434.88,7.61e-05,2]
[343929596,1733088989177,-363.9,7.61e-05,2]
[343929597,1733088989201,-300.0,7.61e-05,2]
[343929598,1733088989226,-1579.54,7.61e-05,2]
[343929599,1733088989580,-869.04,7.61e-05,2]
[343929600,1733088989648,-150.65,7.61e-05,2]
[343929601,1733088989672,-767.42,7.61e-05,2]
[343929602,1733088989696,-385.71,7.61e-05,2]
[343929603,1733088989719,-150.96,7.61e-05,2]
[343929604,1733088989741,-869.82,7.61e-05,2]
[343929605,1733088989765,-150.0,7.61e-05,2]
[343929606,1733088989788,-150.0,7.61e-05,2]
[343929607,1733088989809,-727.71,7.61e-05,2]
[343929608,1733088989831,-150.0,7.61e-05,2]
[343929609,1733088989853,-150.0,7.61e-05,2]
[343929610,1733088989885,-767.42,7.61e-05,2]
[343929611,1733088989917,-434.88,7.61e-05,2]
[343929612,1733088989940,-150.0,7.61e-05,2]
[343929613,1733088989964,-756.6,7.61e-05,2]
[343929614,1733088989987,-359.37,7.61e-05,2]
[343929615,1733088990009,-150.0,7.61e-05,2]
[343929616,1733088990032,-150.0,7.61e-05,2]
[343929617,1733088990057,-435.05,7.61e-05,2]
[343929618,1733088990085,-434.88,7.61e-05,2]
[343929619,1733088990109,-865.9,7.61e-05,2]
[343929620,1733088990141,-150.0,7.61e-05,2]
[343929621,1733088990165,-150.0,7.61e-05,2]
[343929622,1733088990191,-862.6,7.667e-05,2]
[343929623,1733088990215,-538.81,7.67e-05,2]
[343929624,1733088990239,-435.05,7.67e-05,2]
[343929625,1733088990263,-150.0,7.67e-05,2]
[343929626,1733088990291,-363.9,7.67e-05,2]
[343929627,1733088990314,-767.42,7.67e-05,2]
[343929628,1733088990338,-150.0,7.67e-05,2]
[343929629,1733088990363,-150.0,7.67e-05,2]
[343929630,1733088990390,-434.88,7.67e-05,2]
[343929631,1733088990413,-363.9,7.67e-05,2]
[343929632,1733088990436,-767.42,7.67e-05,2]
[343929633,1733088990459,-150.0,7.67e-05,2]
[343929634,1733088990482,-363.9,7.67e-05,2]
[343929635,1733088990506,-150.0,7.67e-05,2]
[343929636,1733088990530,-150.0,7.67e-05,2]
[343929637,1733088990553,-435.05,7.67e-05,2]
[343929638,1733088990576,-785.42,7.67e-05,2]
[343929639,1733088990599,-434.88,7.67e-05,2]
[343929640,1733088990623,-150.0,7.67e-05,2]
[343929641,1733088990646,-767.42,7.67e-05,2]
[343929642,1733088990671,-363.9,7.67e-05,2]
[343929643,1733088990697,-435.05,7.67e-05,2]
[343929644,1733088990723,-150.0,7.67e-05,2]
[343929645,1733088990749,-150.0,7.67e-05,2]
[343929646,1733088990776,-434.88,7.67e-05,2]
[343929647,1733088990802,-470.64,7.695e-05,2]
[343929648,1733088990827,-600.0,7.7e-05,2]
[343929649,1733088990850,-300.0,7.7e-05,2]
[343929650,1733088990879,-261.39204222,7.702e-05,2]
[343929651,1733088990905,-150.0,7.705e-05,2]
[343929652,1733088990928,-171.395,7.708e-05,2]
[343929653,1733088990951,-2002.0,7.708e-05,2]
[343929654,1733088990973,-562.0,7.708e-05,2]
[343929655,1733088990995,-1892.0,7.708e-05,2]
[343929656,1733088991018,-1252.0,7.708e-05,2]
[343929657,1733088991040,-816.0,7.708e-05,2]
[343929658,1733088991063,-3759.0,7.708e-05,2]
[343929659,1733088991086,-3526.0,7.708e-05,2]
[343929660,1733088991108,-976.0,7.708e-05,2]
[343929661,1733088991134,-534.0,7.708e-05,2]
[343929662,1733088991159,-1166.0,7.708e-05,2]
[343929663,1733088991183,-13704.0,7.708e-05,2]
[343929664,1733088991205,-1097.0,7.708e-05,2]
[343929665,1733088991232,-150.0,7.719e-05,2]
[343929666,1733088991255,-150.0,7.72e-05,2]
[343929667,1733088991277,-150.0,7.72e-05,2]
[343929668,1733088991300,-150.0,7.734e-05,2]
[343929669,1733088991324,-150.0,7.74e-05,2]
[343929670,1733088991349,-150.0,7.745e-05,2]
[343929671,1733088991380,-566.0,7.749e-05,2]
[343929672,1733088991402,-6043.055,7.749e-05,2]
[343929673,1733088991586,-1261.0,7.749e-05,2]
[343929674,1733088991609,-159.726,7.749e-05,2]
[343929675,1733088991631,-630.0,7.749e-05,2]
[343929676,1733088991654,-150.0,7.763e-05,2]
[343929677,1733088991675,-150.52547463,7.768e-05,2]
[343929678,1733088991697,-150.0,7.769e-05,2]
[343929679,1733088991717,-150.45254273,7.775e-05,2]
[343929680,1733088991739,-150.0,7.777e-05,2]
[343929681,1733088991760,-150.0,7.785e-05,2]
[343929682,1733088991780,-717.95787193,7.789e-05,2]
[343929683,1733088991801,-150.0,7.791e-05,2]
[343929684,1733088991822,-1500.0,7.798e-05,2]
[343929685,1733088991843,-600.0,7.8e-05,2]
[343929686,1733088991867,-300.0,7.8e-05,2]
[343929687,1733088991891,-1500.0,7.806e-05,2]
[343929688,1733088991914,-150.0,7.808e-05,2]
[343929689,1733088991937,-150.0,7.817e-05,2]
[343929690,1733088991958,-1500.0,7.818e-05,2]
[343929691,1733088991981,-196.71325209,7.825e-05,2]
[343929692,1733088992004,-421.51873653,7.826e-05,2]
[343929693,1733088992026,-1500.0,7.827e-05,2]
[343929694,1733088992047,-150.0,7.834e-05,2]
[343929695,1733088992070,-1500.0,7.835e-05,2]
[343929696,1733088992091,-150.0,7.842e-05,2]
[343929697,1733088992111,-150.0,7.848e-05,2]
[343929698,1733088992135,-150.0,7.874e-05,2]
[343929699,1733088992157,-4606.09781527,7.874e-05,2]
[343929700,1733088992179,-164.31864897,7.878e-05,2]
[343929701,1733088992200,-1528.05399939,7.883e-05,2]
[343929702,1733088992223,-1026.0,7.9e-05,2]
[343929703,1733088992245,-685.0,7.9e-05,2]
[343929704,1733088992269,-1505.52692429,7.9e-05,2]
[343929705,1733088992290,-150.0,7.907e-05,2]
[343929706,1733088992313,-150.0,7.913e-05,2]
[343929707,1733088992334,-12191.7361013,7.92e-05,2]
[343929708,1733088992355,-150.0,7.939e-05,2]
[343929709,1733088992380,-150.0,7.94e-05,2]
[343929710,1733088992401,-150.0,7.946e-05,2]
[343929711,1733088992422,-752.0,7.949e-05,2]
[343929712,1733088992442,-34326.0,7.953e-05,2]
[343929713,1733088992462,-150.0,7.955e-05,2]
[343929714,1733088992483,-200.0,7.957e-05,2]
[343929715,1733088992503,-2144.57305862,7.957e-05,2]
[343929716,1733088992523,-200.0,7.957e-05,2]
[343929717,1733088992545,-200.0,7.957e-05,2]
[343929718,1733088992571,-205.17116264,7.958e-05,2]
[343929719,1733088992593,-1604.639,7.958e-05,2]
[343929720,1733088992615,-186.936,7.958e-05,2]
[343929721,1733088992638,-2022.55988934,7.958e-05,2]
[343929722,1733088992659,-891.20561658,7.959e-05,2]
[343929723,1733088992681,-200.0,7.959e-05,2]
[343929724,1733088992703,-205.17116264,7.96e-05,2]
[343929725,1733088992724,-891.20561658,7.962e-05,2]
[343929726,1733088992747,-200.0,7.962e-05,2]
[343929727,1733088992769,-2144.57305862,7.963e-05,2]
[343929728,1733088992791,-200.0,7.965e-05,2]
[343929729,1733088992813,-937.53264273,7.965e-05,2]
[343929730,1733088992835,-200.0,7.965e-05,2]
[343929731,1733088992857,-200.0,7.965e-05,2]
[343929732,1733088992881,-2022.55988934,7.966e-05,2]
[343929733,1733088992904,-891.20561658,7.966e-05,2]
[343929734,1733088992926,-2144.57305862,7.966e-05,2]
[343929735,1733088992948,-2144.57305862,7.966e-05,2]
[343929736,1733088992970,-200.0,7.966e-05,2]
[343929737,1733088992992,-205.17116264,7.967e-05,2]
[343929738,1733088993015,-2022.55988934,7.967e-05,2]
[343929739,1733088993038,-205.17116264,7.968e-05,2]
[343929740,1733088993061,-200.0,7.968e-05,2]
[343929741,1733088993084,-200.0,7.968e-05,2]
[343929742,1733088993108,-200.0,7.968e-05,2]
[343929743,1733088993132,-200.0,7.969e-05,2]
[343929744,1733088993159,-282.87816809,7.969e-05,2]
[343929745,1733088993183,-205.17116264,7.969e-05,2]
[343929746,1733088993206,-200.0,7.969e-05,2]
[343929747,1733088993231,-200.0,7.971e-05,2]
[343929748,1733088993255,-2022.55988934,7.971e-05,2]
[343929749,1733088993279,-937.53264273,7.971e-05,2]
[343929750,1733088993304,-891.20561658,7.971e-05,2]
[343929751,1733088993330,-200.0,7.972e-05,2]
[343929752,1733088993354,-2144.57305862,7.972e-05,2]
[343929753,1733088993382,-937.53264273,7.973e-05,2]
[343929754,1733088993413,-2022.55988934,7.974e-05,2]
[343929755,1733088993438,-205.17116264,7.975e-05,2]
[343929756,1733088993462,-891.20561658,7.975e-05,2]
[343929757,1733088993486,-200.0,7.976e-05,2]
[343929758,1733088993510,-937.53264273,7.976e-05,2]
[343929759,1733088993536,-200.0,7.976e-05,2]
[343929760,1733088993562,-150.0,7.976e-05,2]
[343929761,1733088993586,-200.0,7.976e-05,2]
[343929762,1733088993610,-937.53264273,7.977e-05,2]
[343929763,1733088993635,-937.53264273,7.978e-05,2]
[343929764,1733088993659,-200.0,7.979e-05,2]
[343929765,1733088993684,-2022.55988934,7.979e-05,2]
[343929766,1733088993707,-200.0,7.979e-05,2]
[343929767,1733088993733,-200.0,7.979e-05,2]
[343929768,1733088993756,-2144.57305862,7.979e-05,2]
[343929769,1733088993781,-200.0,7.98e-05,2]
[343929770,1733088993806,-891.20561658,7.98e-05,2]
[343929771,1733088993831,-50141.88768162,7.998e-05,2]
[343929772,1733088993854,-5000.0,7.999e-05,2]
[343929773,1733088993879,-150.0,7.999e-05,2]
[343929774,1733088993905,-92168.41,7.999e-05,2]
[343929775,1733088993929,-1581.96106185,7.999e-05,2]
[343929776,1733088993951,-7512.33888737,7.999e-05,2]
[343929777,1733088994176,-66226982.69243541,8e-05,2]
[343929778,1733089023032,21922.88,6.845e-05,2]
[343929780,1733089173011,268610.0,0.00025,120]
[343929781,1733089396475,500.0,0.00024997,120]
[343929786,1733089831962,-517.56,7.357e-05,2]
[343929801,1733089832179,-329.248587,7.381e-05,2]
[343929804,1733089832192,-1170.751413,7.381e-05,2]
[343929806,1733089832202,-5.796081,7.476e-05,2]
[343929808,1733089832215,-1994.203919,7.476e-05,2]
[343929810,1733089832225,-6601.4333,7.65e-05,2]
[343929812,1733089832235,-7.84227128,7.7e-05,2]
[343929818,1733089832268,-179.41282872,7.7e-05,2]
[343929820,1733089832277,-310.149,7.7e-05,2]
[343929822,1733089832287,-761.2146,7.7e-05,2]
[343929824,1733089832300,-150.0,7.749e-05,2]
[343929826,1733089832310,-1259.0,7.75e-05,2]
[343929828,1733089832319,-566.0,7.75e-05,2]
[343929830,1733089832329,-150.0,7.75e-05,2]
[343929832,1733089832339,-630.0,7.75e-05,2]
[343929834,1733089832349,-1974.958,7.75e-05,2]
[343929836,1733089832359,-1357.561,7.75e-05,2]
[343929838,1733089832369,-3759.0,7.75e-05,2]
[343929840,1733089832380,-608.42120238,7.75e-05,2]
[343929850,1733089832472,-643.57879762,7.75e-05,2]
[343929852,1733089832483,-816.0,7.75e-05,2]
[343929854,1733089832492,-976.0,7.75e-05,2]
[343929855,1733089832501,-534.0,7.75e-05,2]
[343929857,1733089832511,-3526.0,7.75e-05,2]
[343929859,1733089832522,-150.0,7.75e-05,2]
[343929861,1733089832532,-5960.0,7.75e-05,2]
[343929863,1733089832541,-1166.0,7.75e-05,2]
[343929866,1733089832555,-13704.0,7.75e-05,2]
[343929867,1733089832565,-150.0,7.781e-05,2]
[343929870,1733089832575,-509622.73665468,7.8e-05,2]
[343929871,1733089832585,-446.7064,7.9e-05,2]
[343929874,1733089832595,-12191.7361013,7.92e-05,2]
[343929876,1733089832606,-1903.0,7.92e-05,2]
[343929878,1733089832617,-500.0,7.973e-05,2]
[343929880,1733089832627,-1542.337454,7.989e-05,2]
[343929882,1733089832636,-443.5749625,7.989e-05,2]
[343929884,1733089832646,-12499.6644363,7.989e-05,2]
[343929886,1733089832656,-4994.7545548,7.989e-05,2]
[343929888,1733089832666,-1868.061,7.993e-05,2]
[343929890,1733089832677,-184.19,7.993e-05,2]
[343929892,1733089832688,-412.94038951,7.994e-05,2]
[343929893,1733089832698,-1293.5021034,7.995e-05,2]
[343929895,1733089832708,-1044.6667528,7.995e-05,2]
[343929897,1733089832717,-795.8314022,7.995e-05,2]
[343929900,1733089832727,-443.5749625,7.995e-05,2]
[343929901,1733089832737,-443.5749625,7.995e-05,2]
[343929904,1733089832748,-443.5749625,7.995e-05,2]
[343929906,1733089832759,-10466.3738217,7.995e-05,2]
[343929908,1733089832770,-8433.0832071,7.995e-05,2]
[343929910,1733089832780,-6399.7925925,7.995e-05,2]
[343929912,1733089832790,-4182.2697389,7.995e-05,2]
[343929914,1733089832803,-3369.784923,7.995e-05,2]
[343929916,1733089832813,-2557.3001071,7.995e-05,2]
[343929918,1733089832823,-150.0,7.998e-05,2]
[343929920,1733089832833,-150.0,7.998e-05,2]
[343929922,1733089832843,-150.0,7.998e-05,2]
[343929924,1733089832853,-150.0,7.998e-05,2]
[343929926,1733089832863,-150.0,7.998e-05,2]
[343929928,1733089832873,-150.0,7.998e-05,2]
[343929930,1733089832883,-150.0,7.998e-05,2]
[343929932,1733089832893,-150.0,7.998e-05,2]
[343929934,1733089832903,-150.0,7.998e-05,2]
[343929936,1733089832912,-2400.03694111,7.999e-05,2]
[343929938,1733089832922,-171.09347986,7.999e-05,2]
[343929940,1733089832932,-4008989.35290585,8e-05,2]
[343929942,1733089832944,-97500.00000001,8e-05,2]
[343929945,1733089832956,-741.72432228,8e-05,2]
[343929951,1733089833015,-3517.6923,8e-05,2]
[343930394,1733089837819,-1097.0,7.75e-05,2]
[343930397,1733089837835,-1483.81397079,7.999e-05,2]
[343930399,1733089837850,-5831.94035921,8e-05,2]
[343930414,1733089837984,-149.14938071,8e-05,2]
[343930417,1733089838002,-576.138445,8e-05,2]
[343930421,1733089838117,-760.65789305,8e-05,2]
[343930422,1733089838136,-1057.40301469,8e-05,2]
[343930423,1733089838190,-820.000011,8e-05,2]
[343930425,1733089838210,-594.99998642,8e-05,2]
[343930436,1733089839776,-2932.5898703,8e-05,2]
[343930437,1733089839789,-1850.13499998,8e-05,2]
[343930438,1733089839844,-3593.36130287,8e-05,2]
[343930439,1733089839857,-968.43871744,8e-05,2]
[343930440,1733089839869,-34292.83466108,8e-05,2]
[343930441,1733089839896,-324.75999986,8e-05,2]
[343930442,1733089839909,-262.520001,8e-05,2]
[343930443,1733089840047,-822.444,8e-05,2]
[343930453,1733089843206,-150.0,7.75e-05,2]
[343930454,1733089843215,-5665.91605214,8e-05,2]
[343930455,1733089843227,-340352.92466345,8e-05,2]
[343930456,1733089843239,-262.47,8e-05,2]
[343930457,1733089843349,-500.0,7.973e-05,2]
[343930458,1733089843362,-7.03866902,8e-05,2]
[343930459,1733089843374,-6404.5159467,8e-05,2]
[343930460,1733089843385,-19322.59799999,8e-05,2]
[343930461,1733089843397,-2221.03701774,8e-05,2]
[343930462,1733089843408,-268.285381,8e-05,2]
[343930463,1733089843477,-6684.15961473,8e-05,2]